bitfinex/quotes_SOLUSD_20241223
["timestamp","ask_amount","ask_price","bid_price","bid_amount"]
[1734947079524,20.0,185.17,185.09,8.88456703]
[1734947080526,20.0,185.17,185.09,8.07447104]
[1734947081103,20.0,185.17,185.07,8.07447104]
[1734947081322,20.0,185.17,185.07,8.88469477]
[1734947084441,20.0,185.08,184.96,3.8831]
[1734947084723,20.0,185.08,184.98,8.07447104]
[1734947084925,20.0,185.07,184.97,8.07447104]
[1734947085915,20.0,185.07,184.98,8.07447104]
[1734947089232,20.0,185.07,184.99,8.07447104]
[1734947089431,6.82674642,185.1,185.0,8.07447104]
[1734947089609,10.2937,185.11,185.03,8.07447104]
[1734947090734,10.2937,185.11,185.02,8.07447104]
[1734947092041,20.0,185.08,185.02,8.07447104]
[1734947096419,10.2937,185.11,185.02,8.07447104]
[1734947096618,10.2937,185.11,185.03,8.07447104]
[1734947098841,10.2937,185.11,185.02,8.07447104]
[1734947102060,20.0,185.08,185.0,0.8104123]
[1734947102242,10.5838,185.07,184.97,0.81057787]
[1734947102541,10.5838,185.07,184.97,8.07447104]
[1734947102841,10.5838,185.07,185.01,8.07447104]
[1734947103037,10.5838,185.07,185.03,8.07447104]
[1734947103247,10.5838,185.07,185.02,8.07447104]
[1734947104376,10.2742,185.11,185.06,8.07447104]
[1734947104646,10.2742,185.11,185.07,8.07447104]
[1734947105336,10.2742,185.11,185.06,8.07447104]
[1734947106754,10.6177,185.16,185.1,8.07447104]
[1734947106934,10.6177,185.16,185.12,8.07447104]
[1734947107262,10.6177,185.16,185.07,20.0]
[1734947107444,10.6177,185.16,185.09,8.07447104]
[1734947107959,10.6177,185.16,185.08,8.07447104]
[1734947108859,10.6177,185.16,185.05,0.81020314]
[1734947109034,20.0,185.13,185.03,8.07447104]
[1734947109541,20.0,185.09,185.0,8.07447104]
[1734947109733,20.0,185.09,184.98,8.07447104]
[1734947109937,10.8348,185.08,184.94,0.81064352]
[1734947110149,20.0,185.05,184.98,8.07447104]
[1734947110659,20.0,185.05,184.97,8.07447104]
[1734947111571,20.0,185.05,184.98,8.07447104]
[1734947111858,20.0,185.05,184.99,8.07447104]
[1734947112361,20.0,185.05,184.99,12.63839836]
[1734947112559,20.0,185.05,184.98,12.63839836]
[1734947114177,10.8348,185.08,184.98,12.63839836]
[1734947114346,20.0,185.05,185.0,12.63839836]
[1734947115965,10.8348,185.08,185.0,12.63839836]
[1734947118087,10.8348,185.08,185.01,12.63839836]
[1734947118449,10.8348,185.08,185.02,12.63839836]
[1734947119342,10.8348,185.08,185.03,12.63839836]
[1734947119744,10.8348,185.08,185.04,12.63839836]
[1734947120164,10.8348,185.08,185.03,12.63839836]
[1734947120966,10.8348,185.08,185.04,12.63839836]
[1734947121761,10.8348,185.08,185.03,12.63839836]
[1734947121982,10.8348,185.08,185.0,12.63839836]
[1734947122184,10.8348,185.08,184.93,2.16820327]
[1734947122185,20.0,185.05,184.93,4.76400688]
[1734947122344,20.0,185.05,184.87,170.4703923]
[1734947122345,20.0,185.01,184.92,12.63839836]
[1734947122844,20.0,185.01,184.91,12.63839836]
[1734947123062,6.2425,185.03,184.87,0.81092746]
[1734947123248,20.0,184.96,184.88,12.63839836]
[1734947123769,20.0,184.96,184.9,12.63839836]
[1734947124644,10.1208,184.99,184.9,12.63839836]
[1734947125645,10.1208,184.99,184.91,12.63839836]
[1734947127143,10.1208,184.99,184.92,12.63839836]
[1734947127348,10.1208,184.99,184.93,12.63839836]
[1734947129173,10.1208,184.99,184.91,12.63839836]
[1734947129674,10.1208,184.99,184.92,12.63839836]
[1734947131554,10.1208,184.99,184.94,12.63839836]
[1734947131758,10.1208,184.99,184.93,12.63839836]
[1734947132780,10.1208,184.99,184.92,12.63839836]
[1734947133657,10.1208,184.99,184.91,12.63839836]
[1734947133862,10.1208,184.99,184.9,12.63839836]
[1734947134066,10.1208,184.99,184.89,12.63839836]
[1734947134389,20.0,184.96,184.85,12.63839836]
[1734947134566,20.0,184.96,184.84,12.63839836]
[1734947134966,3.9367,184.91,184.83,12.63839836]
[1734947135279,20.0,184.87,184.73,8.44259807]
[1734947135462,20.0,184.87,184.77,12.63839836]
[1734947135779,20.0,184.87,184.79,12.63839836]
[1734947135985,20.0,184.87,184.8,12.63839836]
[1734947136190,20.0,184.87,184.79,12.63839836]
[1734947136893,6.4685,184.9,184.83,12.63839836]
[1734947137094,6.4685,184.9,184.86,12.63839836]
[1734947137290,11.16638291,184.99,184.84,0.81131455]
[1734947137291,10.5383,184.98,184.89,12.63839836]
[1734947137498,10.5383,184.98,184.88,12.63839836]
[1734947137791,10.5383,184.98,184.87,12.63839836]
[1734947138707,20.0,184.95,184.86,12.63839836]
[1734947139000,20.0,184.95,184.87,12.63839836]
[1734947142093,20.0,184.95,184.86,12.63839836]
[1734947142497,20.0,184.95,184.85,12.63839836]
[1734947143309,20.0,184.95,184.84,12.63839836]
[1734947143691,20.0,184.95,184.84,20.0]
[1734947143888,20.0,184.95,184.83,12.63839836]
[1734947144913,20.0,184.96,184.82,12.63839836]
[1734947145087,20.0,184.94,184.82,12.63839836]
[1734947145709,20.0,184.9,184.8,12.63839836]
[1734947145917,20.0,184.9,184.79,12.63839836]
[1734947146285,20.0,184.9,184.81,12.63839836]
[1734947146488,20.0,184.9,184.84,12.63839836]
[1734947147386,10.8656,184.93,184.85,12.63839836]
[1734947148007,10.8656,184.93,184.84,12.63839836]
[1734947149124,10.8656,184.93,184.81,0.81144879]
[1734947149291,10.8656,184.93,184.84,12.63839836]
[1734947149484,10.8656,184.93,184.87,12.63839836]
[1734947149789,10.8656,184.93,184.86,12.63839836]
[1734947150386,10.8656,184.93,184.87,12.63839836]
[1734947151714,10.8656,184.93,184.82,0.81122066]
[1734947151715,10.8656,184.93,184.86,12.63839836]
[1734947152231,10.8656,184.93,184.85,12.63839836]
[1734947152513,20.0,184.9,184.78,0.81124713]
[1734947153009,20.0,184.9,184.78,12.63839836]
[1734947154436,20.0,184.9,184.79,12.63839836]
[1734947155025,20.0,184.86,184.78,12.63839836]
[1734947155618,20.0,184.86,184.77,12.63839836]
[1734947155789,20.0,184.86,184.76,12.63839836]
[1734947155991,4.1684,184.85,184.75,12.63839836]
[1734947156221,4.1684,184.85,184.74,12.63839836]
[1734947156598,4.1684,184.85,184.66,18.815798]
[1734947156599,4.1684,184.85,184.72,12.63839836]
[1734947156793,4.1684,184.85,184.73,12.63839836]
[1734947157186,20.0,184.81,184.72,12.63839836]
[1734947157590,20.0,184.81,184.67,0.81188168]
[1734947157792,20.0,184.81,184.71,12.63839836]
[1734947158003,20.0,184.81,184.7,12.63839836]
[1734947158194,20.0,184.83,184.68,12.63839836]
[1734947158393,4.0746,184.76,184.67,12.63839836]
[1734947158912,4.0746,184.76,184.66,12.63839836]
[1734947159613,4.0746,184.76,184.65,12.63839836]
[1734947160591,4.0746,184.76,184.66,12.63839836]
[1734947160905,4.0746,184.76,184.7,12.63839836]
[1734947161132,10.5347,184.8,184.73,12.63839836]
[1734947161319,10.5347,184.8,184.74,12.63839836]
[1734947161705,10.5347,184.8,184.73,12.63839836]
[1734947161904,10.5347,184.8,184.71,0.81190764]
[1734947161905,10.5347,184.8,184.75,12.63839836]
[1734947162102,10.5347,184.8,184.71,20.81190764]
[1734947162409,10.5347,184.8,184.74,12.63839836]
[1734947163119,10.5347,184.8,184.75,12.63839836]
[1734947163418,10.5347,184.8,184.77,12.63839836]
[1734947163712,6.4601,184.8,184.75,12.63839836]
[1734947164219,6.4601,184.8,184.75,20.272271]
[1734947164516,6.4601,184.8,184.76,20.272271]
[1734947165717,10.2612,184.85,184.78,20.272271]
[1734947166021,10.2612,184.85,184.8,20.272271]
[1734947166236,10.2612,184.85,184.78,20.272271]
[1734947167325,20.0,184.82,184.72,0.81157762]
[1734947167535,20.0,184.82,184.74,20.272271]
[1734947169608,20.0,184.82,184.72,20.272271]
[1734947169804,20.0,184.82,184.71,20.272271]
[1734947170006,20.0,184.82,184.69,20.272271]
[1734947172808,20.0,184.78,184.64,20.272271]
[1734947173327,20.0,184.78,184.66,20.272271]
[1734947173726,20.0,184.78,184.65,20.272271]
[1734947174111,20.0,184.74,184.66,20.272271]
[1734947175120,20.0,184.74,184.65,20.272271]
[1734947175304,3.9217,184.73,184.62,20.9632627]
[1734947175625,6.1268,184.72,184.62,0.6909917]
[1734947176618,20.0,184.69,184.62,0.6909917]
[1734947176953,6.1268,184.72,184.65,20.272271]
[1734947177114,6.1268,184.72,184.66,20.272271]
[1734947177306,6.1268,184.72,184.63,0.8122894]
[1734947177307,6.1268,184.72,184.65,20.272271]
[1734947177508,6.1268,184.72,184.64,20.272271]
[1734947178132,6.1268,184.72,184.63,20.272271]
[1734947178635,6.1268,184.72,184.62,0.6909917]
[1734947178636,20.0,184.69,184.62,20.9632627]
[1734947178818,20.0,184.69,184.62,0.6909917]
[1734947180208,20.0,184.72,184.62,0.6909917]
[1734947180414,20.0,184.64,184.53,20.272271]
[1734947180613,20.0,184.64,184.52,20.272271]
[1734947180828,20.0,184.64,184.55,20.272271]
[1734947181020,20.0,184.64,184.57,20.272271]
[1734947181219,10.0419,184.67,184.59,20.272271]
[1734947183029,10.0419,184.67,184.58,20.272271]
[1734947183336,20.0,184.64,184.56,20.272271]
[1734947183637,20.0,184.64,184.55,20.272271]
[1734947183934,20.0,184.64,184.52,20.272271]
[1734947184116,20.0,184.64,184.53,20.272271]
[1734947184318,20.0,184.64,184.56,20.272271]
[1734947184511,20.0,184.64,184.57,20.272271]
[1734947185131,20.0,184.64,184.56,20.272271]
[1734947185523,20.0,184.64,184.57,20.272271]
[1734947186225,20.0,184.64,184.59,20.272271]
[1734947187013,10.0419,184.67,184.59,20.272271]
[1734947187339,10.0419,184.67,184.61,20.272271]
[1734947187736,10.0419,184.67,184.62,20.272271]
[1734947187944,10.0419,184.67,184.61,20.272271]
[1734947188435,10.0419,184.67,184.55,4.84209246]
[1734947188739,20.0,184.64,184.57,20.272271]
[1734947189521,20.0,184.64,184.58,20.272271]
[1734947189724,20.0,184.64,184.57,20.272271]
[1734947191544,20.0,184.64,184.56,20.272271]
[1734947193350,20.0,184.64,184.52,20.272271]
[1734947193560,20.0,184.64,184.55,20.272271]
[1734947193860,20.0,184.64,184.52,20.272271]
[1734947194230,20.0,184.64,184.54,12.69972957]
[1734947194457,20.0,184.64,184.55,12.69972957]
[1734947195465,20.0,184.64,184.54,12.69972957]
[1734947196058,20.0,184.64,184.52,12.69972957]
[1734947196355,20.0,184.64,184.53,12.69972957]
[1734947196745,20.0,184.64,184.54,12.69972957]
[1734947197565,10.0419,184.67,184.56,12.69972957]
[1734947197739,10.0419,184.67,184.59,12.69972957]
[1734947198152,10.0419,184.67,184.58,12.69972957]
[1734947198483,10.0419,184.67,184.57,12.69972957]
[1734947198648,10.0419,184.67,184.54,12.69972957]
[1734947198832,20.0,184.64,184.53,12.69972957]
[1734947199034,20.0,184.64,184.52,12.69972957]
[1734947199257,20.0,184.64,184.53,12.69972957]
[1734947199513,20.0,184.64,184.54,12.69972957]
[1734947199772,20.0,184.64,184.55,12.69972957]
[1734947200565,20.0,184.64,184.54,12.69972957]
[1734947200749,20.0,184.64,184.53,12.69972957]
[1734947201174,20.0,184.64,184.54,12.69972957]
[1734947201572,20.0,184.64,184.53,12.69972957]
[1734947202471,20.0,184.64,184.51,0.81257232]
[1734947202472,3.9013,184.59,184.51,12.69972957]
[1734947202769,3.9013,184.59,184.5,12.69972957]
[1734947203974,3.9013,184.59,184.49,12.69972957]
[1734947205200,6.6025,184.58,184.46,0.81280987]
[1734947205362,20.0,184.55,184.47,12.69972957]
[1734947205566,20.0,184.55,184.46,12.69972957]
[1734947205869,20.0,184.55,184.47,12.69972957]
[1734947207082,20.0,184.55,184.48,12.69972957]
[1734947207981,20.0,184.55,184.49,12.69972957]
[1734947208277,6.6025,184.58,184.53,12.69972957]
[1734947208577,6.6025,184.58,184.54,12.69972957]
[1734947209185,6.2614,184.63,184.54,12.69972957]
[1734947209583,6.2614,184.63,184.55,12.69972957]
[1734947209886,6.2614,184.63,184.57,12.69972957]
[1734947211065,6.2614,184.63,184.56,12.69972957]
[1734947211666,6.2614,184.63,184.55,12.69972957]
[1734947211870,6.2614,184.63,184.56,12.69972957]
[1734947215894,6.2614,184.63,184.58,12.69972957]
[1734947216085,6.2614,184.63,184.56,12.69972957]
[1734947218696,6.2614,184.63,184.58,12.69972957]
[1734947219370,4.0326,184.64,184.58,12.69972957]
[1734947219371,6.1993,184.67,184.58,12.69972957]
[1734947219573,6.1993,184.67,184.6,12.69972957]
[1734947219771,6.1993,184.67,184.53,136.7]
[1734947219772,6.1993,184.67,184.58,12.69972957]
[1734947219986,20.0,184.64,184.54,12.69972957]
[1734947221896,20.0,184.64,184.57,12.69972957]
[1734947222985,6.1993,184.67,184.59,12.69972957]
[1734947223182,6.1993,184.67,184.6,12.69972957]
[1734947223498,6.1993,184.67,184.62,12.69972957]
[1734947223681,6.1993,184.67,184.61,13.51202522]
[1734947224197,6.1993,184.67,184.6,12.69972957]
[1734947224407,6.1993,184.67,184.57,12.69972957]
[1734947224601,6.1993,184.67,184.55,12.69972957]
[1734947224779,6.1993,184.67,184.56,12.69972957]
[1734947224980,6.1993,184.67,184.55,12.69972957]
[1734947225190,6.1993,184.67,184.54,12.69972957]
[1734947225705,20.0,184.64,184.54,12.69972957]
[1734947226082,6.1993,184.67,184.58,12.69972957]
[1734947226388,6.1993,184.67,184.59,0.81231532]
[1734947226704,6.1993,184.67,184.58,12.69972957]
[1734947231277,6.1993,184.67,184.59,0.81233375]
[1734947232190,6.1993,184.67,184.58,12.69972957]
[1734947233785,6.1993,184.67,184.56,12.69972957]
[1734947233991,20.0,184.64,184.55,12.69972957]
[1734947234601,20.0,184.64,184.56,13.51224198]
[1734947235118,20.0,184.64,184.55,12.69972957]
[1734947235707,4.0032,184.63,184.52,12.69972957]
[1734947235878,4.0032,184.63,184.51,13.51220856]
[1734947236079,20.0,184.59,184.51,13.51220856]
[1734947236278,20.0,184.59,184.51,12.69972957]
[1734947236479,20.0,184.59,184.48,12.69972957]
[1734947236903,20.0,184.59,184.5,12.69972957]
[1734947238086,20.0,184.59,184.51,12.69972957]
[1734947238710,20.0,184.59,184.5,12.69972957]
[1734947241633,20.0,184.59,184.51,12.69972957]
[1734947242134,20.0,184.59,184.49,12.69972957]
[1734947243219,4.0849,184.58,184.48,12.69972957]
[1734947243413,6.3911,184.57,184.46,20.0]
[1734947243609,6.3911,184.57,184.47,12.69972957]
[1734947243814,6.3911,184.57,184.48,12.69972957]
[1734947244745,6.3911,184.57,184.5,12.69972957]
[1734947245937,20.0,184.54,184.49,12.69972957]
[1734947247045,6.3911,184.57,184.49,12.69972957]
[1734947247240,6.3911,184.57,184.5,12.69972957]
[1734947248541,6.3911,184.57,184.51,13.51245002]
[1734947248724,6.3911,184.57,184.52,12.69972957]
[1734947249052,5.8911,184.57,184.52,12.69972957]
[1734947249419,5.8911,184.57,184.5,12.69972957]
[1734947250337,5.8911,184.57,184.51,12.69972957]
[1734947250643,4.0849,184.58,184.55,12.69972957]
[1734947250851,3.7877,184.63,184.56,13.51227851]
[1734947251221,3.7877,184.63,184.57,12.69972957]
[1734947251540,3.7877,184.63,184.59,12.69972957]
[1734947251842,3.7877,184.68,184.62,12.69972957]
[1734947252016,3.7877,184.68,184.63,12.69972957]
[1734947253522,3.7877,184.68,184.64,12.69972957]
[1734947254215,6.4503,184.71,184.66,12.69972957]
[1734947254443,6.2719,184.76,184.69,12.69972957]
[1734947255544,6.2719,184.76,184.72,12.69972957]
[1734947255751,6.0153,184.81,184.75,12.69972957]
[1734947255918,6.0153,184.81,184.76,12.69972957]
[1734947256118,8.48569069,184.83,184.78,12.69972957]
[1734947256340,8.48569069,184.83,184.79,13.51124697]
[1734947256543,8.48569069,184.83,184.78,12.69972957]
[1734947257045,6.0153,184.85,184.78,12.69972957]
[1734947257263,6.0153,184.85,184.77,12.69972957]
[1734947258245,6.0153,184.85,184.78,12.69972957]
[1734947258418,6.0153,184.85,184.78,13.51132189]
[1734947261764,6.0153,184.85,184.76,12.69972957]
[1734947261941,6.0153,184.85,184.7,6.2482]
[1734947261942,6.0153,184.85,184.75,32.69972957]
[1734947262343,6.0153,184.85,184.74,12.69972957]
[1734947262546,20.0,184.82,184.74,12.69972957]
[1734947262852,20.0,184.82,184.76,12.69972957]
[1734947263352,20.0,184.82,184.73,12.69972957]
[1734947264255,20.0,184.82,184.75,12.69972957]
[1734947264450,6.0153,184.85,184.76,13.51140676]
[1734947264637,6.0153,184.85,184.77,12.69972957]
[1734947265953,6.0153,184.85,184.75,12.69972957]
[1734947266255,6.0153,184.85,184.76,12.69972957]
[1734947267759,6.0153,184.85,184.75,12.69972957]
[1734947267926,6.0153,184.85,184.74,32.69972957]
[1734947268332,6.0153,184.85,184.75,12.69972957]
[1734947269051,6.0153,184.85,184.74,12.69972957]
[1734947269352,6.0153,184.85,184.73,12.69972957]
[1734947269564,6.0153,184.85,184.74,12.69972957]
[1734947270224,20.0,184.82,184.72,12.69972957]
[1734947270471,20.0,184.82,184.71,12.69972957]
[1734947270942,20.0,184.82,184.7,12.69972957]
[1734947271133,3.943,184.81,184.7,12.69972957]
[1734947272860,3.943,184.81,184.71,12.69972957]
[1734947273759,3.943,184.81,184.7,12.69972957]
[1734947274843,6.2223,184.8,184.69,12.69972957]
[1734947276662,6.2223,184.8,184.68,0.81191187]
[1734947276663,6.2223,184.8,184.73,12.69972957]
[1734947277649,6.2223,184.8,184.75,12.69972957]
[1734947277862,6.2223,184.8,184.77,12.69972957]
[1734947278163,6.0013,184.84,184.79,12.69972957]
[1734947279549,6.0013,184.84,184.78,12.69972957]
[1734947280062,6.0013,184.84,184.8,12.69972957]
[1734947280383,6.0013,184.84,184.78,12.69972957]
[1734947280553,6.0013,184.84,184.77,12.69972957]
[1734947280951,6.0013,184.84,184.75,12.69972957]
[1734947281134,6.0013,184.84,184.73,12.69972957]
[1734947282854,6.0013,184.84,184.71,12.69972957]
[1734947282855,20.0,184.81,184.71,12.69972957]
[1734947283065,20.0,184.81,184.7,12.69972957]
[1734947283262,20.0,184.81,184.71,12.69972957]
[1734947284146,20.0,184.81,184.72,12.69972957]
[1734947284348,20.0,184.81,184.71,12.69972957]
[1734947284578,20.0,184.81,184.7,12.69972957]
[1734947285369,20.0,184.81,184.71,12.69972957]
[1734947290083,20.0,184.81,184.73,12.69972957]
[1734947292568,4.072,184.8,184.71,12.69972957]
[1734947293269,6.3512,184.79,184.71,12.69972957]
[1734947297467,6.3512,184.79,184.68,12.69972957]
[1734947297667,20.0,184.76,184.68,12.69972957]
[1734947297868,20.0,184.76,184.66,12.69972957]
[1734947299682,3.8176,184.75,184.66,12.69972957]
[1734947300380,3.8176,184.75,184.68,12.69972957]
[1734947300583,3.8176,184.75,184.71,12.69972957]
[1734947300981,6.3512,184.79,184.73,12.69972957]
[1734947301285,6.3512,184.79,184.75,12.69972957]
[1734947302370,6.3512,184.79,184.73,12.69972957]
[1734947307488,6.3512,184.79,184.75,12.69972957]
[1734947307662,6.4337,184.83,184.77,12.69972957]
[1734947307863,3.9665,184.84,184.79,12.69972957]
[1734947308086,6.4337,184.88,184.79,12.69972957]
[1734947311790,6.4337,184.88,184.8,0.81142552]
[1734947312610,6.4424,184.92,184.86,20.0]
[1734947312892,6.4424,184.92,184.89,12.69972957]
[1734947313097,12.38859069,184.95,184.9,12.69972957]
[1734947313995,3.9029,184.95,184.9,12.69972957]
[1734947314380,3.9029,184.95,184.88,12.69972957]
[1734947317271,3.9029,184.95,184.89,0.81101041]
[1734947317473,3.9029,184.95,184.9,12.69972957]
[1734947317682,6.0706,184.96,184.9,12.69972957]
[1734947318094,6.0706,184.96,184.92,12.69972957]
[1734947318293,3.805,185.0,184.92,12.69972957]
[1734947318495,3.805,185.0,184.94,12.69972957]
[1734947318690,0.6909917,185.09,184.99,12.69972957]
[1734947318874,0.6909917,185.09,185.06,12.69972957]
[1734947320087,0.6909917,185.09,185.02,12.69972957]
[1734947321086,0.6909917,185.09,185.0,12.69972957]
[1734947321594,0.6909917,185.09,184.98,12.69972957]
[1734947324081,0.6909917,185.09,185.0,12.69972957]
[1734947324285,0.6909917,185.09,185.02,20.21676762]
[1734947324607,0.6909917,185.09,185.04,20.21676762]
[1734947325887,0.6909917,185.09,185.06,20.21676762]
[1734947328103,0.6909917,185.09,185.08,157.04225762]
[1734947328303,6.3532,185.31,185.22,20.21676762]
[1734947329206,6.3532,185.31,185.24,20.21676762]
[1734947329379,6.3532,185.31,185.26,20.21676762]
[1734947330398,6.045,185.36,185.26,20.21676762]
[1734947340214,6.045,185.36,185.27,20.21676762]
[1734947340402,6.045,185.36,185.24,20.21676762]
[1734947340603,6.045,185.36,185.25,20.21676762]
[1734947340915,6.045,185.36,185.27,20.21676762]
[1734947341290,6.045,185.36,185.26,20.21676762]
[1734947341503,6.045,185.36,185.23,20.21676762]
[1734947343222,6.045,185.36,185.22,20.21676762]
[1734947344647,88.545,185.36,185.23,20.21676762]
[1734947345095,6.045,185.36,185.26,20.21676762]
[1734947346143,6.045,185.36,185.24,20.21676762]
[1734947346444,23.7732,185.29,185.23,20.21676762]
[1734947347546,23.7732,185.29,185.22,20.21676762]
[1734947347714,23.7732,185.29,185.2,20.21676762]
[1734947347715,6.4322,185.27,185.2,20.21676762]
[1734947347915,6.4322,185.27,185.19,20.21676762]
[1734947348324,6.4322,185.27,185.2,20.21676762]
[1734947349447,20.0,185.24,185.16,20.21676762]
[1734947349753,20.0,185.24,185.18,20.21676762]
[1734947349913,20.0,185.24,185.19,20.21676762]
[1734947350108,20.0,185.24,185.14,0.80989628]
[1734947350336,6.4322,185.27,185.2,12.6098853]
[1734947350543,6.4322,185.27,185.18,12.6098853]
[1734947351248,20.0,185.24,185.18,12.6098853]
[1734947354468,20.0,185.24,185.16,12.6098853]
[1734947354631,20.0,185.24,185.14,12.6098853]
[1734947355033,20.0,185.24,185.15,12.6098853]
[1734947358231,26.0257,185.22,185.12,12.6098853]
[1734947358479,26.0257,185.22,185.07,12.6098853]
[1734947359136,26.0257,185.22,185.09,12.6098853]
[1734947359332,26.0257,185.22,185.1,12.6098853]
[1734947359535,26.0257,185.22,185.13,12.6098853]
[1734947359750,26.0257,185.22,185.12,12.6098853]
[1734947360273,26.0257,185.22,185.11,12.6098853]
[1734947367962,26.0257,185.22,185.09,12.6098853]
[1734947368156,20.0,185.18,185.07,12.6098853]
[1734947368660,20.0,185.18,185.09,12.6098853]
[1734947369160,20.0,185.18,185.11,12.6098853]
[1734947369968,20.0,185.18,185.1,12.6098853]
[1734947370770,20.0,185.18,185.08,12.6098853]
[1734947381269,10.2058,185.21,185.1,12.6098853]
[1734947381440,10.2058,185.21,185.12,12.6098853]
[1734947384368,10.2058,185.21,185.13,12.6098853]
[1734947384554,10.2058,185.21,185.14,12.6098853]
[1734947387254,10.2058,185.21,185.13,12.6098853]
[1734947389875,10.2058,185.21,185.14,12.6098853]
[1734947392182,10.2058,185.21,185.14,8.07466738]
[1734947392679,10.2058,185.21,185.15,8.07466738]
[1734947392981,6.5304,185.25,185.19,8.07466738]
[1734947393274,6.5304,185.25,185.18,8.07466738]
[1734947393655,6.5304,185.25,185.19,8.07466738]
[1734947394171,6.5304,185.25,185.19,12.61061873]
[1734947394380,6.5304,185.25,185.2,12.61061873]
[1734947395888,6.5304,185.25,185.18,32.61061873]
[1734947397461,6.5304,185.25,185.19,12.61061873]
[1734947398487,6.5304,185.25,185.2,12.61061873]
[1734947399190,6.5304,185.25,185.21,12.61061873]
[1734947399387,0.6909917,185.28,185.21,12.61061873]
[1734947399570,0.6909917,185.28,185.25,12.61061873]
[1734947399777,0.6909917,185.28,185.26,12.61061873]
[1734947401791,0.6909917,185.28,185.25,12.61061873]
[1734947402198,0.6909917,185.28,185.24,12.61061873]
[1734947402997,0.6909917,185.28,185.25,12.61061873]
[1734947403894,0.6909917,185.28,185.24,12.61061873]
[1734947404369,0.6909917,185.28,185.27,12.61061873]
[1734947406587,0.6909917,185.28,185.27,16.39851873]
[1734947406803,3.7211,185.4,185.31,20.0]
[1734947407012,3.7211,185.4,185.35,12.61061873]
[1734947407316,6.4547,185.41,185.35,12.61061873]
[1734947407487,6.4547,185.41,185.36,12.61061873]
[1734947407998,6.4547,185.41,185.35,12.61061873]
[1734947408517,6.4547,185.41,185.36,12.61061873]
[1734947409197,6.4547,185.41,185.37,12.61061873]
[1734947410500,6.4547,185.41,185.36,12.61061873]
[1734947411099,20.0,185.43,185.36,12.61061873]
[1734947411498,20.0,185.43,185.33,12.61061873]
[1734947411796,20.0,185.39,185.29,12.61061873]
[1734947412003,3.9315,185.38,185.27,12.61061873]
[1734947412381,3.9315,185.38,185.28,12.61061873]
[1734947412581,6.3646,185.37,185.28,12.61061873]
[1734947412902,6.3646,185.37,185.27,12.61061873]
[1734947414001,20.0,185.34,185.26,12.61061873]
[1734947416293,3.9709,185.33,185.2,0.80943537]
[1734947416481,20.0,185.29,185.21,12.61061873]
[1734947416686,20.0,185.29,185.2,12.61061873]
[1734947417525,3.8766,185.28,185.16,12.61061873]
[1734947417806,20.0,185.24,185.16,12.61061873]
[1734947417993,20.0,185.24,185.15,12.61061873]
[1734947418805,20.0,185.24,185.17,12.61061873]
[1734947419589,20.0,185.24,185.14,12.61061873]
[1734947420009,20.0,185.24,185.15,12.61061873]
[1734947420179,6.2748,185.27,185.2,12.61061873]
[1734947420384,6.2748,185.27,185.19,12.61061873]
[1734947420585,6.2748,185.27,185.18,12.61061873]
[1734947421992,6.2748,185.27,185.16,12.61061873]
[1734947422307,20.0,185.24,185.16,12.61061873]
[1734947424807,20.0,185.16,185.05,12.61061873]
[1734947425009,4.0187,185.15,185.05,12.61061873]
[1734947425194,4.0187,185.15,185.0,3.914]
[1734947425195,4.0187,185.15,185.03,12.61061873]
[1734947426399,4.8303292,185.15,185.05,12.61061873]
[1734947426601,4.8303292,185.15,185.07,12.61061873]
[1734947426787,4.0187,185.15,185.07,12.61061873]
[1734947427002,4.0187,185.15,185.09,12.61061873]
[1734947428801,6.0766,185.19,185.09,12.61061873]
[1734947428990,6.0766,185.19,185.13,12.61061873]
[1734947430110,6.0766,185.19,185.11,12.61061873]
[1734947432686,6.0766,185.19,185.07,33.420704]
[1734947432886,6.0766,185.19,185.07,12.61061873]
[1734947433699,20.0,185.16,185.07,12.61061873]